[Event "*** Titled Tuesday Blitz"]
[Site "Chess.com"]
[Date "2018.11.06"]
[Round "1"]
[White "ViktorMatviishen"]
[Black "penguingm1"]
[Result "0-1"]
[WhiteElo "2433"]
[BlackElo "2837"]
[TimeControl "180+2"]
[EndTime "13:05:40 PST"]
[Termination "penguingm1 won by resignation"]

1. e4 {[%clk 0:02:59.3]} 1... e5 {[%clk 0:02:56.9]} 2. Nf3 {[%clk 0:02:58.9]}
2... Nc6 {[%clk 0:02:58.4]} 3. Bb5 {[%clk 0:02:59.1]} 3... a6 {[%clk 0:02:59.1]}
4. Ba4 {[%clk 0:03:00]} 4... Nf6 {[%clk 0:03:00.6]} 5. d3 {[%clk 0:03:00.7]}
5... d6 {[%clk 0:03:01.8]} 6. O-O {[%clk 0:03:00.9]} 6... g6 {[%clk 0:03:02.5]}
7. c3 {[%clk 0:03:01.8]} 7... Bg7 {[%clk 0:03:02.5]} 8. Nbd2 {[%clk 0:03:02.9]}
8... O-O {[%clk 0:03:03.2]} 9. Re1 {[%clk 0:03:02]} 9... b5 {[%clk 0:03:04.6]}
10. Bc2 {[%clk 0:03:03.4]} 10... Re8 {[%clk 0:03:01.5]} 11. a4 {[%clk
0:03:03.1]} 11... b4 {[%clk 0:03:00.8]} 12. a5 {[%clk 0:03:04.1]} 12... Rb8
{[%clk 0:03:01.7]} 13. Nc4 {[%clk 0:03:02]} 13... Be6 {[%clk 0:03:02.4]} 14. Ba4
{[%clk 0:03:02.7]} 14... Bd7 {[%clk 0:03:03.3]} 15. Bg5 {[%clk 0:03:02.7]} 15...
h6 {[%clk 0:03:04.2]} 16. Bh4 {[%clk 0:03:00.2]} 16... Ne7 {[%clk 0:03:01.2]}
17. Bxd7 {[%clk 0:02:55.8]} 17... Nxd7 {[%clk 0:03:00.9]} 18. Ne3 {[%clk
0:02:53.6]} 18... bxc3 {[%clk 0:02:56.9]} 19. bxc3 {[%clk 0:02:54.5]} 19... Nc5
{[%clk 0:02:58.3]} 20. Qc2 {[%clk 0:02:37.3]} 20... Qd7 {[%clk 0:02:47.7]} 21.
d4 {[%clk 0:02:34.7]} 21... exd4 {[%clk 0:02:48.2]} 22. cxd4 {[%clk 0:02:36.6]}
22... Ne6 {[%clk 0:02:49.6]} 23. Rad1 {[%clk 0:02:33.9]} 23... Rb5 {[%clk
0:02:50.6]} 24. Qa4 {[%clk 0:02:27.8]} 24... Reb8 {[%clk 0:02:41.5]} 25. Rc1
{[%clk 0:02:20.5]} 25... c5 {[%clk 0:02:20.5]} 26. dxc5 {[%clk 0:01:58.9]} 26...
Nxc5 {[%clk 0:02:18.2]} 27. Qa2 {[%clk 0:01:51.4]} 27... Nd3 {[%clk 0:01:41]}
28. Red1 {[%clk 0:01:45.7]} 28... Nxc1 {[%clk 0:01:41.4]} 29. Rxc1 {[%clk
0:01:45.8]} 29... Nc6 {[%clk 0:01:34.7]} 30. Nc4 {[%clk 0:01:42.1]} 30... Rc5
{[%clk 0:01:29.2]} 31. Nfd2 {[%clk 0:01:34.1]} 31... Nxa5 {[%clk 0:01:25.4]} 32.
Bg3 {[%clk 0:01:34.6]} 32... Nxc4 {[%clk 0:01:25.7]} 33. Nxc4 {[%clk 0:01:36]}
33... Qe6 {[%clk 0:01:25.9]} 34. Bxd6 {[%clk 0:01:31.4]} 34... Qxd6 {[%clk
0:01:25.3]} 0-1

[Event "*** Titled Tuesday Blitz"]
[Site "Chess.com"]
[Date "2018.11.06"]
[Round "1"]
[White "ChadBiryani"]
[Black "AkibaRubi"]
[Result "1-0"]
[WhiteElo "2224"]
[BlackElo "2537"]
[TimeControl "180+2"]
[EndTime "13:05:40 PST"]
[Termination "ChadBiryani won by resignation"]

1. d4 {[%clk 0:03:00]} 1... Nf6 {[%clk 0:02:58.3]} 2. Bf4 {[%clk 0:03:00.7]}
2... d5 {[%clk 0:02:56.8]} 3. e3 {[%clk 0:03:01.9]} 3... e6 {[%clk 0:02:54.2]}
4. Bd3 {[%clk 0:03:00]} 4... Be7 {[%clk 0:02:51.6]} 5. Nd2 {[%clk 0:03:00.4]}
5... O-O {[%clk 0:02:52.5]} 6. h3 {[%clk 0:03:00.5]} 6... c5 {[%clk 0:02:42]} 7.
c3 {[%clk 0:03:00.5]} 7... Nc6 {[%clk 0:02:39]} 8. Ngf3 {[%clk 0:03:00.9]} 8...
b6 {[%clk 0:02:32.7]} 9. O-O {[%clk 0:03:01.1]} 9... Bb7 {[%clk 0:02:33.3]} 10.
Qe2 {[%clk 0:03:01.7]} 10... Rc8 {[%clk 0:02:18.3]} 11. Rad1 {[%clk 0:02:59.6]}
11... h6 {[%clk 0:02:06.3]} 12. Rfe1 {[%clk 0:02:44.6]} 12... Re8 {[%clk
0:02:02.8]} 13. dxc5 {[%clk 0:02:45.2]} 13... Bxc5 {[%clk 0:02:02.3]} 14. e4
{[%clk 0:02:43.3]} 14... dxe4 {[%clk 0:01:53.1]} 15. Nxe4 {[%clk 0:02:43.2]}
15... Nxe4 {[%clk 0:01:44.6]} 16. Qxe4 {[%clk 0:02:22.5]} 16... Qf6 {[%clk
0:01:38.9]} 17. Qh7+ {[%clk 0:02:15.9]} 17... Kf8 {[%clk 0:01:39]} 18. Bg3
{[%clk 0:01:54.3]} 18... Ne7 {[%clk 0:01:30.9]} 19. Ne5 {[%clk 0:01:47.5]} 19...
Nf5 {[%clk 0:01:08.6]} 20. Nd7+ {[%clk 0:01:47.2]} 20... Ke7 {[%clk 0:00:57.4]}
21. Nxf6 {[%clk 0:01:47.4]} 21... Kxf6 {[%clk 0:00:57.3]} 22. Be5+ {[%clk
0:01:29.2]} 22... Ke7 {[%clk 0:00:55.4]} 23. Bxf5 {[%clk 0:01:30.2]} 23... exf5
{[%clk 0:00:49.2]} 24. Bxg7+ {[%clk 0:01:25.3]} 1-0

[Event "*** Titled Tuesday Blitz"]
[Site "Chess.com"]
[Date "2018.11.06"]
[Round "1"]
[White "ChessicallyInclined"]
[Black "David_Paravyan"]
[Result "0-1"]
[WhiteElo "2409"]
[BlackElo "2782"]
[TimeControl "180+2"]
[EndTime "13:06:01 PST"]
[Termination "David_Paravyan won by checkmate"]

1. d4 {[%clk 0:02:02.4]} 1... d5 {[%clk 0:02:58.8]} 2. c4 {[%clk 0:01:45]} 2...
c6 {[%clk 0:02:59.5]} 3. Nf3 {[%clk 0:01:45.8]} 3... Nf6 {[%clk 0:02:59.9]} 4.
Nc3 {[%clk 0:01:47.3]} 4... dxc4 {[%clk 0:03:01.2]} 5. a4 {[%clk 0:01:48.2]}
5... Bf5 {[%clk 0:03:02.5]} 6. Ne5 {[%clk 0:01:49.2]} 6... Nbd7 {[%clk
0:03:02.8]} 7. Nxc4 {[%clk 0:01:49.9]} 7... Qc7 {[%clk 0:03:04]} 8. g3 {[%clk
0:01:49.5]} 8... e5 {[%clk 0:03:05.5]} 9. dxe5 {[%clk 0:01:50.9]} 9... Nxe5
{[%clk 0:03:07.4]} 10. Bf4 {[%clk 0:01:51.9]} 10... Nfd7 {[%clk 0:03:08.9]} 11.
Bg2 {[%clk 0:01:52.4]} 11... g5 {[%clk 0:03:09.2]} 12. Ne3 {[%clk 0:01:53.6]}
12... gxf4 {[%clk 0:03:04.4]} 13. Nxf5 {[%clk 0:01:54.8]} 13... fxg3 {[%clk
0:02:54.1]} 14. hxg3 {[%clk 0:01:50.7]} 14... O-O-O {[%clk 0:02:54.9]} 15. Qc2
{[%clk 0:01:46.4]} 15... Kb8 {[%clk 0:02:51.5]} 16. O-O {[%clk 0:01:46.8]} 16...
h5 {[%clk 0:02:50.1]} 17. b4 {[%clk 0:01:27.2]} 17... Bxb4 {[%clk 0:02:47.8]}
18. Rfb1 {[%clk 0:01:27.9]} 18... a5 {[%clk 0:02:46]} 19. Ne4 {[%clk 0:01:07.8]}
19... Ng6 {[%clk 0:02:37]} 20. e3 {[%clk 0:00:42.2]} 20... h4 {[%clk 0:02:34.4]}
21. gxh4 {[%clk 0:00:43.3]} 21... Nxh4 {[%clk 0:02:34.8]} 22. Nxh4 {[%clk
0:00:43.2]} 22... Rxh4 {[%clk 0:02:36.5]} 23. Ng3 {[%clk 0:00:43]} 23... Nb6
{[%clk 0:02:15.2]} 24. Rd1 {[%clk 0:00:34]} 24... Rhh8 {[%clk 0:02:15.1]} 25.
Qf5 {[%clk 0:00:27]} 25... Ka7 {[%clk 0:02:16]} 26. Ne4 {[%clk 0:00:16.3]} 26...
Qh2+ {[%clk 0:02:16]} 27. Kf1 {[%clk 0:00:17.1]} 27... Rhg8 {[%clk 0:02:13.3]}
28. Bf3 {[%clk 0:00:16.3]} 28... Nd5 {[%clk 0:02:04.9]} 29. Nf6 {[%clk
0:00:08.3]} 29... Rg1+ {[%clk 0:02:02.9]} 30. Ke2 {[%clk 0:00:09.1]} 30... Nc3#
{[%clk 0:02:04.4]} 0-1

[Event "*** Titled Tuesday Blitz"]
[Site "Chess.com"]
[Date "2018.11.06"]
[Round "1"]
[White "Shivagami"]
[Black "nearestway"]
[Result "0-1"]
[WhiteElo "2031"]
[BlackElo "2499"]
[TimeControl "180+2"]
[EndTime "13:06:20 PST"]
[Termination "nearestway won by resignation"]

1. Nc3 {[%clk 0:02:59.8]} 1... d5 {[%clk 0:03:00.4]} 2. e4 {[%clk 0:02:59.5]}
2... d4 {[%clk 0:03:00.1]} 3. Nce2 {[%clk 0:03:00]} 3... e5 {[%clk 0:03:00.7]}
4. Ng3 {[%clk 0:03:00.2]} 4... Be6 {[%clk 0:03:01]} 5. Nf3 {[%clk 0:03:00.7]}
5... Nd7 {[%clk 0:03:01.5]} 6. d3 {[%clk 0:03:01.4]} 6... f6 {[%clk 0:02:57.2]}
7. Be2 {[%clk 0:03:01.4]} 7... Bb4+ {[%clk 0:02:51.7]} 8. Bd2 {[%clk 0:03:00]}
8... Bxd2+ {[%clk 0:02:50.1]} 9. Qxd2 {[%clk 0:02:48.1]} 9... Ne7 {[%clk
0:02:52]} 10. O-O {[%clk 0:02:46.5]} 10... c5 {[%clk 0:02:43.8]} 11. Ne1 {[%clk
0:02:43.8]} 11... Qb6 {[%clk 0:02:37.5]} 12. Qc1 {[%clk 0:02:33.2]} 12... O-O-O
{[%clk 0:02:31.3]} 13. c3 {[%clk 0:02:26.7]} 13... Kb8 {[%clk 0:02:31.3]} 14. a4
{[%clk 0:02:24.4]} 14... Qd6 {[%clk 0:02:22.2]} 15. a5 {[%clk 0:02:08.8]} 15...
Rc8 {[%clk 0:02:20.1]} 16. Nc2 {[%clk 0:02:03.3]} 16... Ng6 {[%clk 0:01:57.5]}
17. Qd2 {[%clk 0:01:40.8]} 17... Nf4 {[%clk 0:01:57.2]} 18. b4 {[%clk 0:01:38]}
18... h5 {[%clk 0:01:44.4]} 19. Rfb1 {[%clk 0:01:05.5]} 19... h4 {[%clk
0:01:43.4]} 20. Nf1 {[%clk 0:01:05.4]} 20... dxc3 {[%clk 0:01:39]} 21. Qe3
{[%clk 0:01:05.6]} 21... Ka8 {[%clk 0:01:24.9]} 22. bxc5 {[%clk 0:00:54.7]}
22... Nxc5 {[%clk 0:01:24.9]} 23. Rd1 {[%clk 0:00:45.8]} 23... Nb3 {[%clk
0:01:24.7]} 24. Rab1 {[%clk 0:00:38.9]} 24... Nd4 {[%clk 0:01:25.2]} 25. Nxd4
{[%clk 0:00:33.7]} 25... exd4 {[%clk 0:01:25.7]} 26. e5 {[%clk 0:00:25.1]} 26...
dxe3 {[%clk 0:01:22.5]} 0-1

[Event "*** Titled Tuesday Blitz"]
[Site "Chess.com"]
[Date "2018.11.06"]
[Round "1"]
[White "sergiochess83"]
[Black "BIG_Pirate"]
[Result "1-0"]
[WhiteElo "2783"]
[BlackElo "2406"]
[TimeControl "180+2"]
[EndTime "13:06:37 PST"]
[Termination "sergiochess83 won by resignation"]

1. e4 {[%clk 0:02:57.2]} 1... d5 {[%clk 0:02:59.3]} 2. exd5 {[%clk 0:02:57.4]}
2... Qxd5 {[%clk 0:03:01.2]} 3. Nc3 {[%clk 0:02:58.4]} 3... Qa5 {[%clk
0:03:01.9]} 4. Bc4 {[%clk 0:02:59.3]} 4... Nf6 {[%clk 0:03:02.9]} 5. d3 {[%clk
0:03:00.2]} 5... c6 {[%clk 0:03:01.2]} 6. Bd2 {[%clk 0:03:00.5]} 6... Bg4 {[%clk
0:02:59.8]} 7. f3 {[%clk 0:03:01.2]} 7... Bh5 {[%clk 0:03:00.8]} 8. Nge2 {[%clk
0:02:57.7]} 8... e6 {[%clk 0:02:56.7]} 9. Nf4 {[%clk 0:02:49.4]} 9... Bg6 {[%clk
0:02:53.4]} 10. Qe2 {[%clk 0:02:47.8]} 10... Nbd7 {[%clk 0:02:19.6]} 11. h4
{[%clk 0:02:42.7]} 11... O-O-O {[%clk 0:01:06.4]} 12. h5 {[%clk 0:01:28.8]}
12... e5 {[%clk 0:00:24.7]} 13. hxg6 {[%clk 0:01:03.1]} 13... exf4 {[%clk
0:00:25.2]} 14. gxf7 {[%clk 0:01:04.3]} 14... Bd6 {[%clk 0:00:13.3]} 15. O-O-O
{[%clk 0:01:03]} 15... Qg5 {[%clk 0:00:12.2]} 16. g4 {[%clk 0:00:58.8]} 16...
Ne5 {[%clk 0:00:07.7]} 17. Bb3 {[%clk 0:00:56.8]} 17... Rhf8 {[%clk 0:00:07.3]}
18. Ne4 {[%clk 0:00:53.3]} 18... Nxe4 {[%clk 0:00:07.8]} 19. Qxe4 {[%clk
0:00:55.2]} 19... h6 {[%clk 0:00:08.9]} 20. Rh5 {[%clk 0:00:53.1]} 1-0

[Event "*** Titled Tuesday Blitz"]
[Site "Chess.com"]
[Date "2018.11.06"]
[Round "1"]
[White "dcremisi"]
[Black "joppie2"]
[Result "0-1"]
[WhiteElo "2323"]
[BlackElo "2682"]
[TimeControl "180+2"]
[EndTime "13:06:40 PST"]
[Termination "joppie2 won by resignation"]

1. d4 {[%clk 0:03:01.7]} 1... Nf6 {[%clk 0:02:45.4]} 2. c4 {[%clk 0:03:02.2]}
2... e6 {[%clk 0:02:44.8]} 3. Nf3 {[%clk 0:03:01.6]} 3... d5 {[%clk 0:02:39.6]}
4. Nc3 {[%clk 0:03:02.3]} 4... dxc4 {[%clk 0:02:36.6]} 5. e3 {[%clk 0:02:59]}
5... a6 {[%clk 0:02:36.2]} 6. Bxc4 {[%clk 0:02:59.1]} 6... b5 {[%clk 0:02:37.2]}
7. Bd3 {[%clk 0:03:00.2]} 7... Bb7 {[%clk 0:02:37.6]} 8. O-O {[%clk 0:03:01.6]}
8... c5 {[%clk 0:02:37.5]} 9. dxc5 {[%clk 0:03:01.5]} 9... Bxc5 {[%clk
0:02:37.2]} 10. Qe2 {[%clk 0:03:01.9]} 10... O-O {[%clk 0:02:37.3]} 11. Rd1
{[%clk 0:03:02.7]} 11... Qe7 {[%clk 0:02:35.7]} 12. Bd2 {[%clk 0:03:03.4]} 12...
Nbd7 {[%clk 0:02:34.7]} 13. Rac1 {[%clk 0:03:03.3]} 13... Bd6 {[%clk 0:02:32]}
14. e4 {[%clk 0:02:59.5]} 14... Ne5 {[%clk 0:02:31.2]} 15. Nxe5 {[%clk
0:02:46.9]} 15... Bxe5 {[%clk 0:02:33.1]} 16. g3 {[%clk 0:02:40.6]} 16... Rfd8
{[%clk 0:02:27.5]} 17. Be3 {[%clk 0:02:40.3]} 17... h6 {[%clk 0:02:20.6]} 18. f4
{[%clk 0:02:37.9]} 18... Bxc3 {[%clk 0:02:18.5]} 19. Rxc3 {[%clk 0:02:36.8]}
19... Bxe4 {[%clk 0:02:13.8]} 20. Bb6 {[%clk 0:02:27.5]} 20... Bxd3 {[%clk
0:02:11.3]} 21. Rcxd3 {[%clk 0:02:08.4]} 21... Rxd3 {[%clk 0:02:09.4]} 22. Qxd3
{[%clk 0:02:10.3]} 22... Rc8 {[%clk 0:02:04]} 23. Bd4 {[%clk 0:02:01.2]} 23...
Nd5 {[%clk 0:02:04.8]} 24. f5 {[%clk 0:02:00.1]} 24... e5 {[%clk 0:01:53.8]} 25.
Bxe5 {[%clk 0:01:57.6]} 25... Qxe5 {[%clk 0:01:54.1]} 26. Qxd5 {[%clk
0:01:58.5]} 26... Qxb2 {[%clk 0:01:53.8]} 27. Qb7 {[%clk 0:01:45.9]} 27... Rc1
{[%clk 0:01:45]} 28. Rxc1 {[%clk 0:01:20.3]} 28... Qxc1+ {[%clk 0:01:46.9]} 29.
Kg2 {[%clk 0:01:21.5]} 29... Qc2+ {[%clk 0:01:46.2]} 30. Kh3 {[%clk 0:01:16.6]}
30... Qxf5+ {[%clk 0:01:46.6]} 31. g4 {[%clk 0:01:16]} 31... Qd3+ {[%clk
0:01:46.4]} 32. Kg2 {[%clk 0:01:15]} 32... Qc2+ {[%clk 0:01:45.9]} 33. Kg3
{[%clk 0:01:15.1]} 33... Qxa2 {[%clk 0:01:44.4]} 34. Qc8+ {[%clk 0:01:16.2]}
34... Kh7 {[%clk 0:01:45.2]} 35. h4 {[%clk 0:01:15.9]} 35... Qb3+ {[%clk
0:01:44.8]} 36. Kh2 {[%clk 0:01:14.8]} 36... Qd5 {[%clk 0:01:45.5]} 37. Qxa6
{[%clk 0:01:12]} 37... b4 {[%clk 0:01:44.5]} 38. Qb6 {[%clk 0:01:09.9]} 38... b3
{[%clk 0:01:43.2]} 39. Qb4 {[%clk 0:01:06.1]} 39... Qd3 {[%clk 0:01:42.5]} 40.
h5 {[%clk 0:00:52.4]} 40... Qc2+ {[%clk 0:01:41.1]} 41. Kg3 {[%clk 0:00:52.7]}
41... b2 {[%clk 0:01:41.8]} 42. g5 {[%clk 0:00:53.4]} 42... b1=Q {[%clk
0:01:39]} 43. g6+ {[%clk 0:00:52.1]} 43... fxg6 {[%clk 0:01:40.9]} 0-1

[Event "*** Titled Tuesday Blitz"]
[Site "Chess.com"]
[Date "2018.11.06"]
[Round "1"]
[White "Firouzja2003"]
[Black "Alopekos"]
[Result "1-0"]
[WhiteElo "2950"]
[BlackElo "2469"]
[TimeControl "180+2"]
[EndTime "13:06:44 PST"]
[Termination "Firouzja2003 won by resignation"]

1. e4 {[%clk 0:03:01.7]} 1... e5 {[%clk 0:02:58.4]} 2. Nf3 {[%clk 0:03:02.7]}
2... Nc6 {[%clk 0:02:55.6]} 3. Bb5 {[%clk 0:03:04.1]} 3... a6 {[%clk 0:02:55.9]}
4. Ba4 {[%clk 0:03:04.4]} 4... Nf6 {[%clk 0:02:56.7]} 5. O-O {[%clk 0:03:05.6]}
5... b5 {[%clk 0:02:57.6]} 6. Bb3 {[%clk 0:03:06.7]} 6... Bc5 {[%clk 0:02:59.5]}
7. c3 {[%clk 0:03:07.1]} 7... d6 {[%clk 0:02:59.9]} 8. d3 {[%clk 0:03:08.5]}
8... O-O {[%clk 0:02:59.8]} 9. Bg5 {[%clk 0:03:09.4]} 9... h6 {[%clk 0:03:00.4]}
10. Bh4 {[%clk 0:03:10.6]} 10... g5 {[%clk 0:02:57.7]} 11. Nxg5 {[%clk
0:03:04.9]} 11... hxg5 {[%clk 0:02:59.6]} 12. Bxg5 {[%clk 0:03:06.7]} 12... Kg7
{[%clk 0:02:39.5]} 13. Bd5 {[%clk 0:03:04.2]} 13... Bd7 {[%clk 0:02:38.5]} 14.
Qf3 {[%clk 0:03:04.7]} 14... Rg8 {[%clk 0:02:16.5]} 15. Nd2 {[%clk 0:02:56.4]}
15... Qe7 {[%clk 0:01:58.3]} 16. Rfe1 {[%clk 0:01:54.6]} 16... Raf8 {[%clk
0:00:55.6]} 17. Bb3 {[%clk 0:01:42]} 17... Nd8 {[%clk 0:00:50.2]} 18. Nf1 {[%clk
0:01:23.7]} 18... Ne6 {[%clk 0:00:47]} 19. Bh4 {[%clk 0:01:25]} 19... Nf4 {[%clk
0:00:34.6]} 20. Ne3 {[%clk 0:01:22.3]} 20... Bxe3 {[%clk 0:00:18.8]} 21. fxe3
{[%clk 0:01:20.4]} 21... Ng6 {[%clk 0:00:19.9]} 22. Bg5 {[%clk 0:01:21]} 22...
Bg4 {[%clk 0:00:05.9]} 23. Bxf6+ {[%clk 0:01:18.4]} 23... Qxf6 {[%clk 0:00:07]}
24. Qxg4 {[%clk 0:01:20.3]} 24... Kh7 {[%clk 0:00:04.4]} 25. Rf1 {[%clk
0:01:20.4]} 25... Qe7 {[%clk 0:00:02.9]} 26. Rf5 {[%clk 0:01:19.5]} 26... Kg7
{[%clk 0:00:03.6]} 27. Raf1 {[%clk 0:01:20.1]} 27... f6 {[%clk 0:00:03.7]} 28.
h4 {[%clk 0:01:21.4]} 1-0

[Event "*** Titled Tuesday Blitz"]
[Site "Chess.com"]
[Date "2018.11.06"]
[Round "1"]
[White "Durarbayli"]
[Black "Saitama_Hero"]
[Result "1-0"]
[WhiteElo "2717"]
[BlackElo "2351"]
[TimeControl "180+2"]
[EndTime "13:07:01 PST"]
[Termination "Durarbayli won by resignation"]

1. d4 {[%clk 0:02:57.9]} 1... Nf6 {[%clk 0:03:00.2]} 2. Nf3 {[%clk 0:02:57.6]}
2... g6 {[%clk 0:03:01.7]} 3. g3 {[%clk 0:02:58.4]} 3... Bg7 {[%clk 0:03:03.3]}
4. Bg2 {[%clk 0:02:59.9]} 4... c5 {[%clk 0:03:04.8]} 5. d5 {[%clk 0:03:00.1]}
5... O-O {[%clk 0:03:05.8]} 6. O-O {[%clk 0:03:00.4]} 6... b5 {[%clk 0:03:01.9]}
7. a4 {[%clk 0:02:59.4]} 7... bxa4 {[%clk 0:02:58.9]} 8. Nc3 {[%clk 0:02:56.5]}
8... d6 {[%clk 0:03:00.8]} 9. Rxa4 {[%clk 0:02:36.8]} 9... Nbd7 {[%clk
0:03:00.1]} 10. Re1 {[%clk 0:02:26.8]} 10... h6 {[%clk 0:02:56]} 11. Rh4 {[%clk
0:02:21.6]} 11... g5 {[%clk 0:02:55.5]} 12. Nxg5 {[%clk 0:02:16.5]} 12... hxg5
{[%clk 0:02:57.4]} 13. Bxg5 {[%clk 0:02:17.3]} 13... Ne5 {[%clk 0:02:58.9]} 14.
Qd2 {[%clk 0:01:42.5]} 14... Ng6 {[%clk 0:02:47.3]} 15. Rc4 {[%clk 0:01:25.3]}
15... Rb8 {[%clk 0:02:40.9]} 16. b3 {[%clk 0:01:14.9]} 16... Rb4 {[%clk
0:02:26.4]} 17. Rxb4 {[%clk 0:01:10.9]} 17... cxb4 {[%clk 0:02:28.3]} 18. Bxf6
{[%clk 0:01:11.9]} 18... bxc3 {[%clk 0:02:09.9]} 19. Bxc3 {[%clk 0:01:11.7]}
19... Bxc3 {[%clk 0:02:09.8]} 20. Qxc3 {[%clk 0:01:13.2]} 20... Qb6 {[%clk
0:02:05]} 21. h4 {[%clk 0:01:09.4]} 21... Bf5 {[%clk 0:01:57]} 22. Qd2 {[%clk
0:01:01.7]} 22... Rc8 {[%clk 0:01:32.7]} 23. e4 {[%clk 0:00:58.4]} 23... Bd7
{[%clk 0:01:28.1]} 24. h5 {[%clk 0:00:40.1]} 24... Nf8 {[%clk 0:01:20.5]} 25. e5
{[%clk 0:00:36.7]} 25... dxe5 {[%clk 0:01:13.2]} 26. Qg5+ {[%clk 0:00:30.1]}
26... Kh8 {[%clk 0:01:11.5]} 27. Qxe7 {[%clk 0:00:31]} 27... f6 {[%clk 0:00:58]}
28. h6 {[%clk 0:00:27.6]} 1-0

[Event "*** Titled Tuesday Blitz"]
[Site "Chess.com"]
[Date "2018.11.06"]
[Round "1"]
[White "Markov_Mikhail"]
[Black "Arjun2002"]
[Result "1-0"]
[WhiteElo "2709"]
[BlackElo "2343"]
[TimeControl "180+2"]
[EndTime "13:07:04 PST"]
[Termination "Markov_Mikhail won by resignation"]

1. c4 {[%clk 0:03:00.9]} 1... e5 {[%clk 0:03:00.4]} 2. Nc3 {[%clk 0:03:01.7]}
2... Nf6 {[%clk 0:03:01.3]} 3. Nf3 {[%clk 0:03:01.9]} 3... Nc6 {[%clk
0:03:01.3]} 4. a3 {[%clk 0:03:01.4]} 4... d5 {[%clk 0:02:58]} 5. cxd5 {[%clk
0:03:03.3]} 5... Nxd5 {[%clk 0:02:58.7]} 6. e4 {[%clk 0:03:04.9]} 6... Nxc3
{[%clk 0:02:38.8]} 7. bxc3 {[%clk 0:03:06.8]} 7... Bd6 {[%clk 0:02:35.4]} 8. d4
{[%clk 0:03:00.7]} 8... O-O {[%clk 0:02:34.8]} 9. h3 {[%clk 0:02:57.4]} 9... Qe7
{[%clk 0:02:28.8]} 10. Bd3 {[%clk 0:02:56.4]} 10... f5 {[%clk 0:02:05.1]} 11. d5
{[%clk 0:02:49.3]} 11... Nd8 {[%clk 0:02:02.9]} 12. Qe2 {[%clk 0:02:28.8]} 12...
f4 {[%clk 0:02:00.8]} 13. Nd2 {[%clk 0:02:23.9]} 13... Qg5 {[%clk 0:01:55.5]}
14. f3 {[%clk 0:02:14.3]} 14... Be7 {[%clk 0:01:39.9]} 15. c4 {[%clk 0:02:13.2]}
15... Qg6 {[%clk 0:01:35]} 16. Nb3 {[%clk 0:02:09.8]} 16... Nf7 {[%clk
0:01:32.1]} 17. c5 {[%clk 0:02:06.4]} 17... b6 {[%clk 0:01:24.6]} 18. c6 {[%clk
0:02:04.3]} 18... Nd6 {[%clk 0:01:19.3]} 19. Bb2 {[%clk 0:02:05]} 19... Qh5
{[%clk 0:01:10.9]} 20. O-O-O {[%clk 0:02:05.3]} 20... a5 {[%clk 0:01:10.2]} 21.
a4 {[%clk 0:02:05.4]} 21... b5 {[%clk 0:01:04.2]} 22. axb5 {[%clk 0:02:02.3]}
22... a4 {[%clk 0:01:05.1]} 23. Nd2 {[%clk 0:02:03.9]} 23... a3 {[%clk
0:01:04.2]} 24. Bc3 {[%clk 0:02:05.4]} 24... a2 {[%clk 0:00:35.6]} 25. Kb2
{[%clk 0:02:05.1]} 25... Nf7 {[%clk 0:00:24.9]} 26. Ra1 {[%clk 0:02:01.9]} 26...
Qg6 {[%clk 0:00:22]} 27. Rxa2 {[%clk 0:01:59.9]} 27... Rxa2+ {[%clk 0:00:22]}
28. Kxa2 {[%clk 0:02:01.8]} 28... Bxh3 {[%clk 0:00:20.2]} 29. gxh3 {[%clk
0:01:58.4]} 29... Ra8+ {[%clk 0:00:20.7]} 30. Kb2 {[%clk 0:01:59.9]} 30... Qd6
{[%clk 0:00:19.4]} 31. Nb3 {[%clk 0:01:22]} 31... Qa3+ {[%clk 0:00:18.3]} 32.
Kc2 {[%clk 0:01:23.4]} 32... Qa2+ {[%clk 0:00:17.6]} 33. Bb2 {[%clk 0:01:24.8]}
33... Nd6 {[%clk 0:00:15.6]} 34. Ra1 {[%clk 0:01:22.4]} 1-0

[Event "*** Titled Tuesday Blitz"]
[Site "Chess.com"]
[Date "2018.11.06"]
[Round "1"]
[White "WorldChampionBulletChess"]
[Black "Paralinch"]
[Result "0-1"]
[WhiteElo "2394"]
[BlackElo "2837"]
[TimeControl "180+2"]
[EndTime "13:07:05 PST"]
[Termination "Paralinch won by resignation"]

1. d4 {[%clk 0:03:01.8]} 1... d5 {[%clk 0:03:00.8]} 2. c3 {[%clk 0:03:01.8]}
2... c5 {[%clk 0:03:01.3]} 3. Nf3 {[%clk 0:03:03.3]} 3... Nc6 {[%clk 0:03:02.3]}
4. Bf4 {[%clk 0:03:03.8]} 4... Qb6 {[%clk 0:03:01.5]} 5. Qc1 {[%clk 0:03:03.7]}
5... Nf6 {[%clk 0:03:01.4]} 6. e3 {[%clk 0:03:02.9]} 6... Bg4 {[%clk 0:02:59.4]}
7. Be2 {[%clk 0:03:03.2]} 7... e6 {[%clk 0:03:00]} 8. O-O {[%clk 0:03:03]} 8...
Be7 {[%clk 0:03:01.1]} 9. Nbd2 {[%clk 0:03:01.1]} 9... O-O {[%clk 0:03:01.8]}
10. h3 {[%clk 0:03:01.8]} 10... Bh5 {[%clk 0:03:02.7]} 11. Re1 {[%clk 0:02:59]}
11... Rac8 {[%clk 0:03:03.3]} 12. dxc5 {[%clk 0:02:58.3]} 12... Bxc5 {[%clk
0:03:01.4]} 13. Ne5 {[%clk 0:02:38]} 13... Bxe2 {[%clk 0:02:54.5]} 14. Rxe2
{[%clk 0:02:37.6]} 14... Rfd8 {[%clk 0:02:44.7]} 15. Nd3 {[%clk 0:01:57]} 15...
Be7 {[%clk 0:02:41.1]} 16. Nf3 {[%clk 0:01:35.3]} 16... Ne4 {[%clk 0:02:40.5]}
17. Nd4 {[%clk 0:01:11.7]} 17... Bf6 {[%clk 0:02:28.9]} 18. Qf1 {[%clk
0:00:56.9]} 18... Ne7 {[%clk 0:02:14.5]} 19. Rc1 {[%clk 0:00:43.4]} 19... Ng6
{[%clk 0:02:07.5]} 20. Bh2 {[%clk 0:00:42.9]} 20... e5 {[%clk 0:02:04.2]} 21.
Nf5 {[%clk 0:00:37.9]} 21... Qe6 {[%clk 0:02:00.4]} 22. Ng3 {[%clk 0:00:36.4]}
22... Be7 {[%clk 0:01:42.2]} 23. Qe1 {[%clk 0:00:23]} 23... Qa6 {[%clk
0:01:24.1]} 24. Nb4 {[%clk 0:00:14.6]} 24... Bxb4 {[%clk 0:01:23.7]} 25. cxb4
{[%clk 0:00:16.5]} 25... Rxc1 {[%clk 0:01:21.6]} 26. Qxc1 {[%clk 0:00:18.4]}
26... Nxg3 {[%clk 0:01:22.7]} 27. Bxg3 {[%clk 0:00:19]} 27... Qxe2 {[%clk
0:01:23.4]} 28. Qc7 {[%clk 0:00:15]} 28... Rf8 {[%clk 0:01:24]} 29. Qxb7 {[%clk
0:00:12.1]} 29... Qd1+ {[%clk 0:01:20]} 30. Kh2 {[%clk 0:00:12.6]} 30... h5
{[%clk 0:01:21.9]} 31. f4 {[%clk 0:00:11]} 31... h4 {[%clk 0:01:20.9]} 32. Bf2
{[%clk 0:00:11.6]} 32... Qe2 {[%clk 0:01:19.3]} 33. Bg1 {[%clk 0:00:12.1]} 33...
exf4 {[%clk 0:01:19.1]} 34. exf4 {[%clk 0:00:12]} 34... Nxf4 {[%clk 0:01:20.1]}
0-1